[Event "RUS-ch Blitz 2021"]
[Site "Sochi"]
[Date "2021.10.11"]
[Round "7.15"]
[White "Averin, Nikolay"]
[Black "Trushnikov, Sergey"]
[Result "0-1"]
[ECO "B06"]
[WhiteElo "2129"]
[BlackElo "2525"]
[Annotator "ChessBase"]
[PlyCount "76"]
[EventDate "2021.10.11"]
[EventType "blitz"]
[EventCountry "RUS"]
[SourceTitle "playchess.com"]
[Source "ChessBase"]
[SourceQuality "1"]
[TimeControl "180+2"]

1. e4 {[%emt 0:00:00]} g6 {[%emt 0:00:00]} 2. d4 {[%emt 0:00:04]} Bg7 {[%emt 0:
00:02]} 3. f4 {[%emt 0:00:00]} c6 {[%emt 0:00:00]} 4. Nf3 {[%emt 0:00:07]} Na6
{[%emt 0:00:01]} 5. Nc3 {[%emt 0:00:00]} Nc7 {[%emt 0:00:00]} 6. Be3 {[%emt 0:
00:11]} d5 {[%emt 0:00:01]} 7. e5 {[%emt 0:00:00]} h5 {[%emt 0:00:00]} 8. Be2 {
[%emt 0:00:00]} Nh6 {[%emt 0:00:00]} 9. Qd2 {[%emt 0:00:00]} Bg4 {[%emt 0:00:
16]} 10. O-O-O {[%emt 0:00:08]} Nf5 {[%emt 0:00:10]} 11. Bf2 {[%emt 0:00:00]}
Ne6 {[%emt 0:00:10]} 12. g3 {[%emt 0:00:30]} h4 {[%emt 0:00:25]} 13. Nxh4 {
[%emt 0:00:44]} Bxe2 {[%emt 0:00:11]} 14. Nxf5 {[%emt 0:00:29]} Bxd1 {[%emt 0:
00:06]} 15. Nxg7+ {[%emt 0:00:12]} Nxg7 {[%emt 0:00:00]} 16. Nxd1 {[%emt 0:00:
05]} Qd7 {[%emt 0:00:19]} 17. h4 {[%emt 0:00:08]} Qg4 {[%emt 0:00:12]} 18. Ne3
{[%emt 0:00:09]} Qf3 {[%emt 0:00:00]} 19. Rf1 {[%emt 0:00:09]} Nf5 {[%emt 0:00:
12]} 20. Qd1 {[%emt 0:00:26]} Qxd1+ {[%emt 0:00:13]} 21. Nxd1 {[%emt 0:00:05]}
Ng7 {[%emt 0:00:14]} 22. c3 {[%emt 0:00:08]} f5 {[%emt 0:00:00]} 23. Rg1 {
[%emt 0:00:06]} Kf7 {[%emt 0:00:00]} 24. Ne3 {[%emt 0:00:00]} e6 {[%emt 0:00:
04]} 25. Kd2 {[%emt 0:00:00]} b6 {[%emt 0:00:04]} 26. Nc2 {[%emt 0:00:09]} Rhc8
{[%emt 0:00:00]} 27. b4 {[%emt 0:00:04]} a5 {[%emt 0:00:00]} 28. a3 {[%emt 0:
00:02]} axb4 {[%emt 0:00:00]} 29. axb4 {[%emt 0:00:00]} Ra2 {[%emt 0:00:15]}
30. Rb1 {[%emt 0:00:04]} Rca8 {[%emt 0:00:00]} 31. Kc1 {[%emt 0:00:00]} Ne8 {
[%emt 0:00:04]} 32. Be1 {[%emt 0:00:00]} Nc7 {[%emt 0:00:04]} 33. Rb2 {[%emt 0:
00:01]} Rxb2 {[%emt 0:00:02]} 34. Kxb2 {[%emt 0:00:01]} Nb5 {[%emt 0:00:11]}
35. Bf2 {[%emt 0:00:00]} Kg7 {[%emt 0:00:00]} 36. Bg1 {[%emt 0:00:10]} Kh6 {
[%emt 0:00:00]} 37. Ne3 {[%emt 0:00:02]} Kh5 {[%emt 0:00:04]} 38. Kb3 {[%emt 0:
00:02]} Na3 {[%emt 0:00:00]} 0-1

[Event "RUS-ch Blitz 2021"]
[Site "Sochi"]
[Date "2021.10.11"]
[Round "7.16"]
[White "Dudin, Gleb"]
[Black "Murzin, Volodar"]
[Result "0-1"]
[ECO "E67"]
[WhiteElo "2438"]
[BlackElo "2513"]
[Annotator "ChessBase"]
[PlyCount "78"]
[EventDate "2021.10.11"]
[EventType "blitz"]
[EventCountry "RUS"]
[SourceTitle "playchess.com"]
[Source "ChessBase"]
[SourceQuality "1"]
[TimeControl "180+2"]

1. c4 {[%emt 0:00:05]} Nf6 {[%emt 0:00:12]} 2. Nc3 {[%emt 0:00:00]} g6 {
[%emt 0:00:00]} 3. g3 {[%emt 0:00:00]} Bg7 {[%emt 0:00:00]} 4. Bg2 {[%emt 0:00:
00]} O-O {[%emt 0:00:06]} 5. Nf3 {[%emt 0:00:03]} d6 {[%emt 0:00:00]} 6. d4 {
[%emt 0:00:00]} Nbd7 {[%emt 0:00:00]} 7. O-O {[%emt 0:00:07]} e5 {[%emt 0:00:
00]} 8. h3 {[%emt 0:00:10]} a6 {[%emt 0:00:06]} 9. b3 {[%emt 0:00:39]} Re8 {
[%emt 0:00:09]} 10. Bb2 {[%emt 0:00:09]} c6 {[%emt 0:01:30]} 11. e3 {[%emt 0:
00:44]} e4 {[%emt 0:00:05]} 12. Nd2 {[%emt 0:00:00]} d5 {[%emt 0:00:03]} 13.
cxd5 {[%emt 0:00:31]} cxd5 {[%emt 0:00:00]} 14. a4 {[%emt 0:00:00]} h5 {
[%emt 0:00:13]} 15. b4 {[%emt 0:00:08]} Nf8 {[%emt 0:00:11]} 16. Nb3 {[%emt 0:
00:14]} N8h7 {[%emt 0:00:24]} 17. a5 {[%emt 0:00:16]} Ng5 {[%emt 0:00:07]} 18.
Kh2 {[%emt 0:00:00]} Qd6 {[%emt 0:00:22]} 19. Nc5 {[%emt 0:00:12]} h4 {[%emt 0:
00:00]} 20. b5 {[%emt 0:00:00]} Nh5 {[%emt 0:00:02]} 21. Ne2 {[%emt 0:00:04]}
Nf3+ {[%emt 0:00:03]} 22. Bxf3 {[%emt 0:00:06]} exf3 {[%emt 0:00:00]} 23. Nf4 {
[%emt 0:00:00]} hxg3+ {[%emt 0:00:07]} 24. fxg3 {[%emt 0:00:00]} Nxf4 {[%emt 0:
00:02]} 25. gxf4 {[%emt 0:00:16]} Rxe3 {[%emt 0:00:02]} 26. Rxf3 {[%emt 0:00:
00]} Rxf3 {[%emt 0:00:00]} 27. Qxf3 {[%emt 0:00:06]} axb5 {[%emt 0:00:00]} 28.
Re1 {[%emt 0:00:03]} Bf5 {[%emt 0:00:02]} 29. Nxb7 {[%emt 0:00:00]} Qc6 {
[%emt 0:00:03]} 30. Nc5 {[%emt 0:00:07]} Rxa5 {[%emt 0:00:00]} 31. Bc3 {
[%emt 0:00:00]} Ra2+ {[%emt 0:00:04]} 32. Re2 {[%emt 0:00:03]} Ra3 {[%emt 0:00:
07]} 33. Re3 {[%emt 0:00:00]} Rxc3 {[%emt 0:00:04]} 34. Rxc3 {[%emt 0:00:01]}
Bxd4 {[%emt 0:00:02]} 35. Rc1 {[%emt 0:00:02]} Bxc5 {[%emt 0:00:02]} 36. Qc3 {
[%emt 0:00:02]} Qd6 {[%emt 0:00:02]} 37. Qxc5 {[%emt 0:00:05]} Qxf4+ {[%emt 0:
00:00]} 38. Kg1 {[%emt 0:00:03]} Qg3+ {[%emt 0:00:00]} 39. Kh1 {[%emt 0:00:02]}
Be4# {[%emt 0:00:00]} 0-1

[Event "RUS-ch Blitz 2021"]
[Site "Sochi"]
[Date "2021.10.11"]
[Round "7.17"]
[White "Lysyj, Igor"]
[Black "Vetokhin, Savva"]
[Result "1-0"]
[ECO "E04"]
[WhiteElo "2603"]
[BlackElo "2339"]
[Annotator "ChessBase"]
[PlyCount "57"]
[EventDate "2021.10.11"]
[EventType "blitz"]
[EventCountry "RUS"]
[SourceTitle "playchess.com"]
[Source "ChessBase"]
[SourceQuality "1"]
[TimeControl "180+2"]

1. d4 {[%emt 0:00:00]} Nf6 {[%emt 0:00:00]} 2. c4 {[%emt 0:00:05]} e6 {[%emt 0:
00:02]} 3. Nf3 {[%emt 0:00:00]} d5 {[%emt 0:00:00]} 4. g3 {[%emt 0:00:08]} dxc4
{[%emt 0:00:00]} 5. Bg2 {[%emt 0:00:00]} a6 {[%emt 0:00:00]} 6. O-O {[%emt 0:
00:00]} Nc6 {[%emt 0:00:00]} 7. Qd2 {[%emt 0:00:00]} Be7 {[%emt 0:00:16]} 8.
Qc3 {[%emt 0:00:00]} O-O {[%emt 0:00:06]} 9. Qxc4 {[%emt 0:00:00]} Bd6 {
[%emt 0:00:13]} 10. Rd1 {[%emt 0:00:09]} Qe7 {[%emt 0:00:04]} 11. Nc3 {[%emt 0:
00:14]} h6 {[%emt 0:00:20]} 12. Bf4 {[%emt 0:00:07]} e5 {[%emt 0:00:12]} 13.
dxe5 {[%emt 0:00:07]} Nxe5 {[%emt 0:00:02]} 14. Nxe5 {[%emt 0:00:08]} Bxe5 {
[%emt 0:00:00]} 15. Bxe5 {[%emt 0:00:07]} Qxe5 {[%emt 0:00:00]} 16. Qd4 {
[%emt 0:00:00]} Qxd4 {[%emt 0:00:08]} 17. Rxd4 {[%emt 0:00:00]} c6 {[%emt 0:00:
00]} 18. e4 {[%emt 0:00:07]} Be6 {[%emt 0:00:03]} 19. Rad1 {[%emt 0:00:01]}
Rfe8 {[%emt 0:00:24]} 20. h3 {[%emt 0:00:04]} Kf8 {[%emt 0:00:06]} 21. f4 {
[%emt 0:00:00]} g6 {[%emt 0:00:06]} 22. e5 {[%emt 0:00:09]} Ng8 {[%emt 0:00:00]
} 23. a3 {[%emt 0:00:12]} Ne7 {[%emt 0:00:00]} 24. g4 {[%emt 0:00:08]} Rac8 {
[%emt 0:00:06]} 25. Ne4 {[%emt 0:00:08]} Rc7 {[%emt 0:00:01]} 26. Nf6 {[%emt 0:
00:08]} Rb8 {[%emt 0:00:03]} 27. Rd8+ {[%emt 0:00:03]} Rxd8 {[%emt 0:00:21]}
28. Rxd8+ {[%emt 0:00:00]} Kg7 {[%emt 0:00:00]} 29. Ne8+ {[%emt 0:00:02]} 1-0

[Event "RUS-ch Blitz 2021"]
[Site "Sochi"]
[Date "2021.10.11"]
[Round "7.18"]
[White "Savitskiy, Sergey"]
[Black "Grachev, Boris"]
[Result "1/2-1/2"]
[ECO "B45"]
[WhiteElo "2439"]
[BlackElo "2615"]
[Annotator "ChessBase"]
[PlyCount "139"]
[EventDate "2021.10.11"]
[EventType "blitz"]
[EventCountry "RUS"]
[SourceTitle "playchess.com"]
[Source "ChessBase"]
[SourceQuality "1"]
[TimeControl "180+2"]

1. e4 {[%emt 0:00:00]} c5 {[%emt 0:00:04]} 2. Nf3 {[%emt 0:00:03]} e6 {[%emt 0:
00:00]} 3. d4 {[%emt 0:00:00]} cxd4 {[%emt 0:00:00]} 4. Nxd4 {[%emt 0:00:00]}
Nf6 {[%emt 0:00:09]} 5. Nc3 {[%emt 0:00:03]} Nc6 {[%emt 0:00:00]} 6. Nxc6 {
[%emt 0:00:00]} bxc6 {[%emt 0:00:00]} 7. e5 {[%emt 0:00:00]} Nd5 {[%emt 0:00:
00]} 8. Ne4 {[%emt 0:00:00]} Bb7 {[%emt 0:00:00]} 9. Bd3 {[%emt 0:00:31]} c5 {
[%emt 0:00:00]} 10. c4 {[%emt 0:00:04]} Nb4 {[%emt 0:00:03]} 11. Bb1 {[%emt 0:
00:02]} Nc6 {[%emt 0:00:09]} 12. f4 {[%emt 0:00:09]} Qh4+ {[%emt 0:00:05]} 13.
g3 {[%emt 0:00:11]} Qh3 {[%emt 0:00:13]} 14. Kf2 {[%emt 0:00:27]} Nd4 {[%emt 0:
00:08]} 15. Qf1 {[%emt 0:00:13]} Qh5 {[%emt 0:00:23]} 16. Qd1 {[%emt 0:00:00]}
Qh3 {[%emt 0:00:01]} 17. Qf1 {[%emt 0:00:01]} Qxf1+ {[%emt 0:00:04]} 18. Rxf1 {
[%emt 0:00:05]} Be7 {[%emt 0:00:02]} 19. Be3 {[%emt 0:00:19]} f6 {[%emt 0:00:
00]} 20. Bxd4 {[%emt 0:00:16]} cxd4 {[%emt 0:00:02]} 21. exf6 {[%emt 0:00:00]}
gxf6 {[%emt 0:00:08]} 22. f5 {[%emt 0:00:00]} exf5 {[%emt 0:00:18]} 23. Nd2 {
[%emt 0:00:07]} Bb4 {[%emt 0:00:31]} 24. Nf3 {[%emt 0:00:37]} Rc8 {[%emt 0:00:
05]} 25. Bd3 {[%emt 0:00:12]} Kf7 {[%emt 0:00:00]} 26. a3 {[%emt 0:00:10]} Bd6
{[%emt 0:00:18]} 27. b4 {[%emt 0:00:03]} Be4 {[%emt 0:00:08]} 28. Rad1 {
[%emt 0:00:05]} Bxd3 {[%emt 0:00:18]} 29. Rxd3 {[%emt 0:00:00]} Rxc4 {[%emt 0:
00:00]} 30. Nxd4 {[%emt 0:00:00]} Be5 {[%emt 0:00:13]} 31. Nxf5 {[%emt 0:00:07]
} Ke6 {[%emt 0:00:07]} 32. Ne3 {[%emt 0:00:00]} Rc7 {[%emt 0:00:07]} 33. Rfd1 {
[%emt 0:00:07]} Rhc8 {[%emt 0:00:07]} 34. R1d2 {[%emt 0:00:00]} d6 {[%emt 0:00:
01]} 35. Ng4 {[%emt 0:00:00]} Rc2 {[%emt 0:00:09]} 36. Ke2 {[%emt 0:00:12]}
Rxd2+ {[%emt 0:00:00]} 37. Kxd2 {[%emt 0:00:00]} h5 {[%emt 0:00:01]} 38. Ne3 {
[%emt 0:00:07]} h4 {[%emt 0:00:01]} 39. Ng4 {[%emt 0:00:02]} hxg3 {[%emt 0:00:
06]} 40. hxg3 {[%emt 0:00:00]} Rg8 {[%emt 0:00:00]} 41. Nxe5 {[%emt 0:00:03]}
fxe5 {[%emt 0:00:00]} 42. a4 {[%emt 0:00:02]} Rg4 {[%emt 0:00:13]} 43. Rb3 {
[%emt 0:00:02]} d5 {[%emt 0:00:04]} 44. a5 {[%emt 0:00:00]} a6 {[%emt 0:00:03]}
45. Ke2 {[%emt 0:00:01]} Rc4 {[%emt 0:00:00]} 46. b5 {[%emt 0:00:09]} axb5 {
[%emt 0:00:00]} 47. Rxb5 {[%emt 0:00:00]} Ra4 {[%emt 0:00:04]} 48. Rb6+ {
[%emt 0:00:03]} Kf5 {[%emt 0:00:00]} 49. a6 {[%emt 0:00:02]} d4 {[%emt 0:00:04]
} 50. Kd3 {[%emt 0:00:02]} e4+ {[%emt 0:00:06]} 51. Kc2 {[%emt 0:00:00]} Kg4 {
[%emt 0:00:04]} 52. Re6 {[%emt 0:00:05]} Kf3 {[%emt 0:00:00]} 53. g4 {[%emt 0:
00:00]} d3+ {[%emt 0:00:03]} 54. Kc3 {[%emt 0:00:05]} Ra3+ {[%emt 0:00:00]} 55.
Kb2 {[%emt 0:00:00]} Ra5 {[%emt 0:00:02]} 56. Kc3 {[%emt 0:00:01]} Rc5+ {
[%emt 0:00:03]} 57. Kd4 {[%emt 0:00:04]} Rc1 {[%emt 0:00:04]} 58. Rf6+ {
[%emt 0:00:03]} Ke2 {[%emt 0:00:03]} 59. Kxe4 {[%emt 0:00:00]} d2 {[%emt 0:00:
01]} 60. Rd6 {[%emt 0:00:00]} Ra1 {[%emt 0:00:03]} 61. g5 {[%emt 0:00:05]} Rxa6
{[%emt 0:00:01]} 62. Rxd2+ {[%emt 0:00:03]} Kxd2 {[%emt 0:00:02]} 63. Kf5 {
[%emt 0:00:00]} Ra5+ {[%emt 0:00:02]} 64. Kf6 {[%emt 0:00:01]} Ra6+ {[%emt 0:
00:02]} 65. Kf5 {[%emt 0:00:01]} Ke3 {[%emt 0:00:03]} 66. g6 {[%emt 0:00:00]}
Ra7 {[%emt 0:00:01]} 67. Kf6 {[%emt 0:00:00]} Kf4 {[%emt 0:00:00]} 68. g7 {
[%emt 0:00:02]} Ra6+ {[%emt 0:00:02]} 69. Kf7 {[%emt 0:00:02]} Ra7+ {[%emt 0:
00:01]} 70. Kf6 {[%emt 0:00:01]} 1/2-1/2

[Event "RUS-ch Blitz 2021"]
[Site "Sochi"]
[Date "2021.10.11"]
[Round "7.19"]
[White "Kokarev, Dmitry"]
[Black "Lobanov, Sergei"]
[Result "1/2-1/2"]
[ECO "C64"]
[WhiteElo "2579"]
[BlackElo "2501"]
[Annotator "ChessBase"]
[PlyCount "144"]
[EventDate "2021.10.11"]
[EventType "blitz"]
[EventCountry "RUS"]
[SourceTitle "playchess.com"]
[Source "ChessBase"]
[SourceQuality "1"]
[TimeControl "180+2"]

1. e4 {[%emt 0:00:05]} e5 {[%emt 0:00:00]} 2. Nf3 {[%emt 0:00:00]} Nc6 {
[%emt 0:00:00]} 3. Bb5 {[%emt 0:00:10]} a6 {[%emt 0:00:02]} 4. Ba4 {[%emt 0:00:
00]} Bc5 {[%emt 0:00:00]} 5. d3 {[%emt 0:00:00]} Nge7 {[%emt 0:00:11]} 6. c3 {
[%emt 0:00:00]} O-O {[%emt 0:00:10]} 7. O-O {[%emt 0:00:01]} d6 {[%emt 0:00:01]
} 8. b4 {[%emt 0:00:10]} Ba7 {[%emt 0:00:04]} 9. Bb3 {[%emt 0:00:00]} Be6 {
[%emt 0:00:17]} 10. Be3 {[%emt 0:00:13]} h6 {[%emt 0:00:33]} 11. Bxa7 {[%emt 0:
00:09]} Rxa7 {[%emt 0:00:00]} 12. a4 {[%emt 0:00:04]} Qd7 {[%emt 0:00:08]} 13.
Na3 {[%emt 0:00:08]} f5 {[%emt 0:00:08]} 14. Nc4 {[%emt 0:00:20]} fxe4 {
[%emt 0:00:04]} 15. dxe4 {[%emt 0:00:00]} Kh8 {[%emt 0:00:29]} 16. Nfd2 {
[%emt 0:00:20]} Ng6 {[%emt 0:00:04]} 17. Ne3 {[%emt 0:00:02]} Nf4 {[%emt 0:00:
12]} 18. f3 {[%emt 0:00:30]} Raa8 {[%emt 0:00:01]} 19. Rf2 {[%emt 0:00:00]} Ne7
{[%emt 0:00:06]} 20. Ndf1 {[%emt 0:00:08]} Neg6 {[%emt 0:00:04]} 21. a5 {
[%emt 0:00:04]} Bxb3 {[%emt 0:00:08]} 22. Qxb3 {[%emt 0:00:00]} Rf6 {[%emt 0:
00:03]} 23. Nd5 {[%emt 0:00:07]} Nxd5 {[%emt 0:00:09]} 24. Qxd5 {[%emt 0:00:00]
} c6 {[%emt 0:00:03]} 25. Qa2 {[%emt 0:00:00]} Raf8 {[%emt 0:00:01]} 26. Ne3 {
[%emt 0:00:02]} Nh4 {[%emt 0:00:07]} 27. Rd1 {[%emt 0:00:12]} Rg6 {[%emt 0:00:
06]} 28. Kh1 {[%emt 0:00:00]} Qe7 {[%emt 0:00:00]} 29. Qd2 {[%emt 0:00:07]} Qg5
{[%emt 0:00:12]} 30. Nc4 {[%emt 0:00:04]} Qe7 {[%emt 0:00:10]} 31. Ne3 {
[%emt 0:00:03]} Qg5 {[%emt 0:00:00]} 32. Nc4 {[%emt 0:00:23]} Qe7 {[%emt 0:00:
00]} 33. Ne3 {[%emt 0:00:00]} Qg5 {[%emt 0:00:00]} 34. Ng4 {[%emt 0:00:07]} Qe7
{[%emt 0:00:02]} 35. Qe1 {[%emt 0:00:04]} h5 {[%emt 0:00:25]} 36. Ne3 {[%emt 0:
00:00]} Qg5 {[%emt 0:00:03]} 37. Qd2 {[%emt 0:00:03]} Kh7 {[%emt 0:00:02]} 38.
Nc4 {[%emt 0:00:08]} Qe7 {[%emt 0:00:00]} 39. Qe3 {[%emt 0:00:04]} Re6 {
[%emt 0:00:04]} 40. Nd2 {[%emt 0:00:03]} g5 {[%emt 0:00:06]} 41. Nf1 {[%emt 0:
00:01]} Qf6 {[%emt 0:00:04]} 42. Ng3 {[%emt 0:00:03]} Qf4 {[%emt 0:00:05]} 43.
Qd2 {[%emt 0:00:02]} g4 {[%emt 0:00:02]} 44. Nxh5 {[%emt 0:00:11]} Qxd2 {
[%emt 0:00:00]} 45. Rdxd2 {[%emt 0:00:02]} gxf3 {[%emt 0:00:00]} 46. g3 {
[%emt 0:00:00]} Ng2 {[%emt 0:00:03]} 47. g4 {[%emt 0:00:05]} Kg6 {[%emt 0:00:
03]} 48. h3 {[%emt 0:00:00]} Kg5 {[%emt 0:00:00]} 49. Kh2 {[%emt 0:00:00]} Nh4
{[%emt 0:00:03]} 50. Rd3 {[%emt 0:00:02]} Rd8 {[%emt 0:00:04]} 51. Rfd2 {
[%emt 0:00:04]} Rg6 {[%emt 0:00:03]} 52. Kg3 {[%emt 0:00:00]} Re6 {[%emt 0:00:
02]} 53. Kf2 {[%emt 0:00:00]} Rh6 {[%emt 0:00:02]} 54. Ng3 {[%emt 0:00:00]} Re6
{[%emt 0:00:00]} 55. Nf5 {[%emt 0:00:05]} Nxf5 {[%emt 0:00:00]} 56. gxf5 {
[%emt 0:00:05]} Rh6 {[%emt 0:00:01]} 57. Rxf3 {[%emt 0:00:00]} d5 {[%emt 0:00:
04]} 58. Rd1 {[%emt 0:00:03]} Kf6 {[%emt 0:00:02]} 59. Rfd3 {[%emt 0:00:05]}
Rdh8 {[%emt 0:00:02]} 60. exd5 {[%emt 0:00:01]} cxd5 {[%emt 0:00:00]} 61. Rxd5
{[%emt 0:00:01]} Rxh3 {[%emt 0:00:00]} 62. R5d3 {[%emt 0:00:07]} Rh2+ {[%emt 0:
00:00]} 63. Ke1 {[%emt 0:00:10]} Rc2 {[%emt 0:00:02]} 64. Rf3 {[%emt 0:00:04]}
Rh1+ {[%emt 0:00:03]} 65. Rf1 {[%emt 0:00:00]} Rhh2 {[%emt 0:00:09]} 66. Rd6+ {
[%emt 0:00:01]} Kf7 {[%emt 0:00:00]} 67. Rd7+ {[%emt 0:00:01]} Kf6 {[%emt 0:00:
02]} 68. Rd6+ {[%emt 0:00:00]} Kf7 {[%emt 0:00:00]} 69. Rd7+ {[%emt 0:00:01]}
Kf6 {[%emt 0:00:01]} 70. Rd6+ {[%emt 0:00:02]} Ke7 {[%emt 0:00:03]} 71. Rd5 {
[%emt 0:00:02]} Kf6 {[%emt 0:00:03]} 72. Rd6+ {[%emt 0:00:01]} Kf7 {[%emt 0:00:
03]} 1/2-1/2

[Event "RUS-ch Blitz 2021"]
[Site "Sochi"]
[Date "2021.10.11"]
[Round "7.21"]
[White "Gavrilov, Oleg"]
[Black "Zubritskiy, Artyom"]
[Result "1/2-1/2"]
[ECO "A10"]
[WhiteElo "2356"]
[BlackElo "2442"]
[Annotator "NA"]
[PlyCount "43"]
[EventDate "2021.10.11"]
[EventType "blitz"]
[EventCountry "RUS"]
[SourceTitle "playchess.com"]
[Source "ChessBase"]
[SourceQuality "1"]
[TimeControl "180+2"]

1. c4 {[%emt 0:00:00]} b6 {[%emt 0:00:20]} 2. Nc3 {[%emt 0:00:01]} Bb7 {
[%emt 0:00:00]} 3. e4 {[%emt 0:00:00]} e6 {[%emt 0:00:11]} 4. g3 {[%emt 0:00:
06]} f5 {[%emt 0:00:00]} 5. Bg2 {[%emt 0:00:29]} Nf6 {[%emt 0:00:00]} 6. Qc2 {
[%emt 0:00:04]} Bb4 {[%emt 0:00:39]} 7. Nge2 {[%emt 0:00:00]} O-O {[%emt 0:00:
11]} 8. O-O {[%emt 0:00:00]} Bxc3 {[%emt 0:00:39]} 9. Nxc3 {[%emt 0:00:08]}
fxe4 {[%emt 0:00:00]} 10. Nxe4 {[%emt 0:00:02]} Bxe4 {[%emt 0:00:00]} 11. Bxe4
{[%emt 0:00:00]} Nxe4 {[%emt 0:00:00]} 12. Qxe4 {[%emt 0:00:02]} Nc6 {[%emt 0:
00:05]} 13. d4 {[%emt 0:00:10]} Qf6 {[%emt 0:00:13]} 14. Be3 {[%emt 0:00:00]}
Qf5 {[%emt 0:00:08]} 15. Qxf5 {[%emt 0:00:04]} Rxf5 {[%emt 0:00:00]} 16. f4 {
[%emt 0:00:04]} Raf8 {[%emt 0:00:10]} 17. b3 {[%emt 0:00:18]} Ne7 {[%emt 0:00:
18]} 18. Rac1 {[%emt 0:00:09]} R5f7 {[%emt 0:00:15]} 19. Rfe1 {[%emt 0:00:26]}
g6 {[%emt 0:00:09]} 20. Kg2 {[%emt 0:00:04]} Nf5 {[%emt 0:00:07]} 21. Bg1 {
[%emt 0:00:00]} Ne7 {[%emt 0:00:09]} 22. Re3 {[%emt 0:00:15]} 1/2-1/2

[Event "RUS-ch Blitz 2021"]
[Site "Sochi"]
[Date "2021.10.11"]
[Round "7.22"]
[White "Bologan, Victor"]
[Black "Shcherbin, Matvei"]
[Result "1-0"]
[ECO "A08"]
[WhiteElo "2574"]
[BlackElo "2366"]
[Annotator "ChessBase"]
[PlyCount "65"]
[EventDate "2021.10.11"]
[EventType "blitz"]
[EventCountry "RUS"]
[SourceTitle "playchess.com"]
[Source "ChessBase"]
[SourceQuality "1"]
[TimeControl "180+2"]

1. e4 {[%emt 0:00:00]} c5 {[%emt 0:00:00]} 2. Nf3 {[%emt 0:00:00]} e6 {[%emt 0:
00:00]} 3. d3 {[%emt 0:00:10]} Nc6 {[%emt 0:00:04]} 4. g3 {[%emt 0:00:00]} g6 {
[%emt 0:00:17]} 5. Bg2 {[%emt 0:00:06]} Bg7 {[%emt 0:00:00]} 6. O-O {[%emt 0:
00:00]} Nge7 {[%emt 0:00:06]} 7. c3 {[%emt 0:00:00]} d5 {[%emt 0:00:04]} 8. Qe2
{[%emt 0:00:07]} O-O {[%emt 0:00:04]} 9. e5 {[%emt 0:00:04]} d4 {[%emt 0:00:20]
} 10. c4 {[%emt 0:00:04]} Rb8 {[%emt 0:00:21]} 11. Bf4 {[%emt 0:00:14]} a6 {
[%emt 0:00:17]} 12. Nbd2 {[%emt 0:00:26]} b5 {[%emt 0:00:03]} 13. Ne4 {[%emt 0:
00:06]} bxc4 {[%emt 0:00:13]} 14. dxc4 {[%emt 0:00:03]} Qb6 {[%emt 0:00:21]}
15. Rab1 {[%emt 0:00:10]} Bb7 {[%emt 0:00:16]} 16. h4 {[%emt 0:00:14]} Nb4 {
[%emt 0:00:12]} 17. Nf6+ {[%emt 0:00:09]} Kh8 {[%emt 0:00:00]} 18. Nd7 {
[%emt 0:00:02]} Qc7 {[%emt 0:00:13]} 19. Nxf8 {[%emt 0:00:00]} Rxf8 {[%emt 0:
00:05]} 20. a3 {[%emt 0:00:03]} Nbc6 {[%emt 0:00:02]} 21. b4 {[%emt 0:00:04]}
cxb4 {[%emt 0:00:04]} 22. axb4 {[%emt 0:00:03]} Rd8 {[%emt 0:00:18]} 23. Rfd1 {
[%emt 0:00:07]} Qb6 {[%emt 0:00:09]} 24. Qd2 {[%emt 0:00:12]} h5 {[%emt 0:00:
10]} 25. b5 {[%emt 0:00:14]} axb5 {[%emt 0:00:05]} 26. Rxb5 {[%emt 0:00:05]}
Qa7 {[%emt 0:00:00]} 27. Qb2 {[%emt 0:00:07]} Ba8 {[%emt 0:00:02]} 28. Bg5 {
[%emt 0:00:11]} Rd7 {[%emt 0:00:10]} 29. Ra1 {[%emt 0:00:00]} Qc7 {[%emt 0:00:
01]} 30. Rxa8+ {[%emt 0:00:07]} Kh7 {[%emt 0:00:00]} 31. Bxe7 {[%emt 0:00:08]}
Rxe7 {[%emt 0:00:01]} 32. Ng5+ {[%emt 0:00:02]} Kh6 {[%emt 0:00:06]} 33. Qd2 {
[%emt 0:00:00]} 1-0

[Event "RUS-ch Blitz 2021"]
[Site "Sochi"]
[Date "2021.10.11"]
[Round "7.23"]
[White "Bryakin, Mikhail"]
[Black "Khegay, Dmitriy"]
[Result "1-0"]
[ECO "E60"]
[WhiteElo "2498"]
[BlackElo "2521"]
[Annotator "ChessBase"]
[PlyCount "67"]
[EventDate "2021.10.11"]
[EventType "blitz"]
[EventCountry "RUS"]
[SourceTitle "playchess.com"]
[Source "ChessBase"]
[SourceQuality "1"]
[TimeControl "180+2"]

1. d4 {[%emt 0:00:00]} d6 {[%emt 0:00:00]} 2. Nf3 {[%emt 0:00:00]} Nf6 {
[%emt 0:00:00]} 3. c4 {[%emt 0:00:08]} g6 {[%emt 0:00:02]} 4. g3 {[%emt 0:00:
00]} Bg7 {[%emt 0:00:11]} 5. Bg2 {[%emt 0:00:00]} O-O {[%emt 0:00:00]} 6. O-O {
[%emt 0:00:00]} Bf5 {[%emt 0:00:00]} 7. Nc3 {[%emt 0:00:00]} Ne4 {[%emt 0:00:
04]} 8. Qb3 {[%emt 0:00:22]} Nxc3 {[%emt 0:00:00]} 9. bxc3 {[%emt 0:00:10]} Be4
{[%emt 0:00:00]} 10. a4 {[%emt 0:00:06]} c5 {[%emt 0:00:19]} 11. e3 {[%emt 0:
00:23]} Nc6 {[%emt 0:00:05]} 12. Nd2 {[%emt 0:00:04]} Bxg2 {[%emt 0:00:08]} 13.
Kxg2 {[%emt 0:00:02]} Na5 {[%emt 0:00:00]} 14. Qa2 {[%emt 0:00:11]} Rc8 {
[%emt 0:00:09]} 15. Rb1 {[%emt 0:00:00]} b6 {[%emt 0:00:03]} 16. Bb2 {[%emt 0:
00:10]} e6 {[%emt 0:00:00]} 17. d5 {[%emt 0:00:15]} Qd7 {[%emt 0:00:05]} 18. e4
{[%emt 0:00:09]} f5 {[%emt 0:00:00]} 19. Rbe1 {[%emt 0:00:15]} Rce8 {[%emt 0:
00:09]} 20. f3 {[%emt 0:00:13]} Bh6 {[%emt 0:00:18]} 21. Nb1 {[%emt 0:00:13]}
fxe4 {[%emt 0:00:06]} 22. f4 {[%emt 0:00:39]} e5 {[%emt 0:00:14]} 23. Nd2 {
[%emt 0:00:13]} e3 {[%emt 0:00:12]} 24. Rxe3 {[%emt 0:00:06]} exf4 {[%emt 0:00:
00]} 25. Rxe8 {[%emt 0:00:04]} Qxe8 {[%emt 0:00:00]} 26. Nf3 {[%emt 0:00:07]}
fxg3 {[%emt 0:00:08]} 27. hxg3 {[%emt 0:00:00]} Qe2+ {[%emt 0:00:07]} 28. Rf2 {
[%emt 0:00:02]} Qxc4 {[%emt 0:00:00]} 29. Qb1 {[%emt 0:00:00]} Qxd5 {[%emt 0:
00:08]} 30. Bc1 {[%emt 0:00:00]} Bxc1 {[%emt 0:00:04]} 31. Qxc1 {[%emt 0:00:00]
} Nc4 {[%emt 0:00:00]} 32. Qh6 {[%emt 0:00:10]} Rxf3 {[%emt 0:00:05]} 33. Rxf3
{[%emt 0:00:03]} Ne5 {[%emt 0:00:00]} 34. Qf8# {[%emt 0:00:00]} 1-0